Body Name,Service Code,Expenditure Category,Payment Date,Transaction Number,Supplier,Net Amount
Barrow Borough Council,Disabled Facilities Grant,Grants,18-Jun-2020,200048086,ThyssenKrupp Encasa Ltd,"3,988.00"
Barrow Borough Council,Capitalised Planned Maintenance,Heating,11-Jun-2020,200047960,Plumbing Trade Supplies,"5,905.86"
Barrow Borough Council,Homelessness,Preventing Homelessness - support victims of domestic abuse,24-Jun-2020,200048108,Womens Community Matters,"11,648.00"
Barrow Borough Council,Tenant demand maintenance - HRA,Gas works,11-Jun-2020,200047996,Sure Maintenance,"15,163.00"
Barrow Borough Council,Tenant demand maintenance - HRA,Consultancy fees,11-Jun-2020,200047957,Bob Pedley Safety Services,"1,500.00"
Barrow Borough Council,The park leisure centre,Professional fees,18-Jun-2020,200048068,The Sport Leisure & Culture Consultancy Ltd,"3,087.50"
Barrow Borough Council,HRA administration,Subscriptions,18-Jun-2020,200048078,Trown Housing Consultancy Ltd,500.00
Barrow Borough Council,Salthouse Road Depot,Electricity,24-Jun-2020,200048094,NPower,800.31
Barrow Borough Council,Finance Department,Software maintenance,04-Jun-2020,200047942,Capita Business Services Limited,"16,600.00"
Barrow Borough Council,Cost of collection,Council tax collection,11-Jun-2020,200048004,Liberata Uk Ltd,"9,095.53"
Barrow Borough Council,Information technology,Data Line Rental,24-Jun-2020,200048106,Liberata Uk Ltd,784.46
Barrow Borough Council,Crematorium,Maintenance contracts - venue,18-Jun-2020,200048044,JCH Plumbing & Heating Ltd,"7,500.00"
Barrow Borough Council,Telephones Holding A/C,Telephone charges paid,24-Jun-2020,200048106,Liberata Uk Ltd,546.92
Barrow Borough Council,Recycling,Solicitors fees,18-Jun-2020,200048092,Brown Barron Solicitors,689.75
Barrow Borough Council,Recycling,Recycling collection and processing,18-Jun-2020,200048053,FCC Enviroment Services (UK) Ltd,"4,683.71"
Barrow Borough Council,Public conveniences,Building cleaning,04-Jun-2020,200047941,Growing Concerns,"3,284.00"
Barrow Borough Council,Emergency planning,Other expenses,04-Jun-2020,200047951,Richard Gibson,850.00
Barrow Borough Council,Information technology,Professional fees,11-Jun-2020,200048018,Cetus Solutions Ltd,"3,265.44"
Barrow Borough Council,Housing repairs control account,Housing repairs invoices,24-Jun-2020,200048104,Hughes Brothers,"3,769.60"
Barrow Borough Council,Housing repairs control account,Housing repairs invoices,24-Jun-2020,200048104,Hughes Brothers,"3,769.60"
Barrow Borough Council,Homelessness,Homeless support funding,11-Jun-2020,200047971,DIGS,"12,500.00"
Barrow Borough Council,Finance Department,Professional fees,11-Jun-2020,200048011,Version 1,"20,188.00"
Barrow Borough Council,IR personal account,Tax deducted - CIS tax,11-Jun-2020,200047959,Bryan Moncur Ltd,-671.58
Barrow Borough Council,The markets,Buildings repairs and maintenance,11-Jun-2020,200047959,Bryan Moncur Ltd,837.00
Barrow Borough Council,HRA Property inspectors,Professional fees,11-Jun-2020,200048012,First Call,633.02
Barrow Borough Council,Recycling,Recycling collection and processing,18-Jun-2020,200048053,FCC Enviroment Services (UK) Ltd,"11,565.13"
Barrow Borough Council,Waste collection,Refuse collection - other works,18-Jun-2020,200048053,FCC Enviroment Services (UK) Ltd,"14,862.48"
Barrow Borough Council,Disabled Facilities Grant,Grants,11-Jun-2020,200048007,Diseno Associates Ltd,"1,109.40"
Barrow Borough Council,Public conveniences,Buildings repairs and maintenance,24-Jun-2020,200048123,Bill Caulfield Electrical,"1,188.15"
Barrow Borough Council,Future High Street Fund,Professional fees,18-Jun-2020,200048070,DWF LLP,"2,500.00"
Barrow Borough Council,Cemeteries,Grounds maintenance - other works,11-Jun-2020,200048032,Continental Landscapes Ltd,"5,390.29"
Barrow Borough Council,The park leisure centre,Water,24-Jun-2020,200048111,Water Plus Ltd,"1,035.90"
Barrow Borough Council,Capitalised Planned Maintenance,Rewires,11-Jun-2020,200047997,Rexel UK Ltd,925.56
Barrow Borough Council,Dock museum,Electricity,24-Jun-2020,200048094,NPower,"1,713.14"
Barrow Borough Council,Waterfront Gateway Business Centre plot 1 Harding Rise,Professional fees,11-Jun-2020,200047968,Richard Coates Quantity Surveyors Ltd,"3,000.00"
Barrow Borough Council,Legal,Staff advertising,11-Jun-2020,200048013,Spacehouse Ltd,500.00
Barrow Borough Council,Recycling,Recycling collection and processing,18-Jun-2020,200048053,FCC Enviroment Services (UK) Ltd,"2,518.01"
Barrow Borough Council,Cyclical maintenance - HRA,Smoke alarms,18-Jun-2020,200048055,Keith Wilson Elec Con Ltd,"3,912.30"
Barrow Borough Council,Recycling,Recycling collection and processing,18-Jun-2020,200048053,FCC Enviroment Services (UK) Ltd,"-12,590.05"
Barrow Borough Council,Disabled Facilities Grant,Grants,24-Jun-2020,200048141,Lee Bowron Glazing Ltd,"3,870.00"
Barrow Borough Council,The markets,Maintenance contracts - TSU,24-Jun-2020,200048123,Bill Caulfield Electrical,"3,629.57"
Barrow Borough Council,Craven house,Electricity,24-Jun-2020,200048094,NPower,"6,214.35"
Barrow Borough Council,Disabled Facilities Grant,Grants,11-Jun-2020,200048005,Airey Property Developments & Adaptations,"7,847.00"
Barrow Borough Council,IT Equipment & Development,Purchase of equipment,24-Jun-2020,200048113,Cetus Solutions Ltd,"47,999.00"
Barrow Borough Council,Waste collection,Refuse collection - other works,04-Jun-2020,200047922,FCC Enviroment Services (UK) Ltd,"15,917.42"
Barrow Borough Council,Legal,Staff advertising,11-Jun-2020,200048021,HB Editorial Services Ltd,895.00
Barrow Borough Council,Emergency planning,Other expenses,04-Jun-2020,200047954,Athena PTS,"2,055.50"
Barrow Borough Council,Cost of collection,Business rates collection,11-Jun-2020,200048004,Liberata Uk Ltd,"2,778.20"
Barrow Borough Council,Waste collection,Refuse collection - contract,18-Jun-2020,200048053,FCC Enviroment Services (UK) Ltd,"15,238.45"
Barrow Borough Council,Tenant demand maintenance - HRA,Routine Maintenance,11-Jun-2020,200047995,Hughes Brothers,"3,769.60"
Barrow Borough Council,The markets,Electricity,24-Jun-2020,200048094,NPower,591.86
Barrow Borough Council,Cyclical maintenance - HRA,Smoke alarms,11-Jun-2020,200047997,Rexel UK Ltd,"1,071.00"
Barrow Borough Council,Capitalised Planned Maintenance,Heating,18-Jun-2020,200048056,Plumbing Trade Supplies,903.94
Barrow Borough Council,Capitalised Planned Maintenance,Heating,11-Jun-2020,200047996,Sure Maintenance,"1,279.69"
Barrow Borough Council,Housing repairs control account,Housing repairs invoices,11-Jun-2020,200047979,Cumbria Roofing Ulverston,"3,831.00"
Barrow Borough Council,Waste collection,Refuse collection - contract,18-Jun-2020,200048053,FCC Enviroment Services (UK) Ltd,"-16,204.00"
Barrow Borough Council,Recycling,Recycling collection and processing,18-Jun-2020,200048053,FCC Enviroment Services (UK) Ltd,"-5,036.02"
Barrow Borough Council,Current assets - payments in advance,Payment in advance - GF,04-Jun-2020,200047917,Ashlea Ltd,634.89
Barrow Borough Council,The mall and shops,Buildings repairs and maintenance,11-Jun-2020,200047959,Bryan Moncur Ltd,"4,797.00"
Barrow Borough Council,Corporate management,Professional fees,18-Jun-2020,200048049,32West Ltd,"5,678.47"
Barrow Borough Council,Regeneration,Lancaster & South Cumbria Economic Region,24-Jun-2020,200048116,Hatch Associates Ltd,"18,000.00"
Barrow Borough Council,Democratic representation and management,Subscriptions,24-Jun-2020,200048103,Suffolk County Council,665.00
Barrow Borough Council,Barrow town hall,Electricity,24-Jun-2020,200048094,NPower,"2,368.55"
Barrow Borough Council,Barrow town hall,Electricity,24-Jun-2020,200048094,NPower,"2,165.41"
Barrow Borough Council,Capitalised Planned Maintenance,Rewires,11-Jun-2020,200047997,Rexel UK Ltd,951.90
Barrow Borough Council,Waste collection,Refuse collection - contract,18-Jun-2020,200048053,FCC Enviroment Services (UK) Ltd,"-3,240.80"
Barrow Borough Council,Recycling,Recycling collection and processing,18-Jun-2020,200048053,FCC Enviroment Services (UK) Ltd,"4,338.70"
Barrow Borough Council,Tenant demand maintenance - HRA,Disrepair,11-Jun-2020,200048003,Fielden Marshall Glover Strutt,740.00
Barrow Borough Council,Recycling,Recycling collection and processing,18-Jun-2020,200048053,FCC Enviroment Services (UK) Ltd,"17,320.80"
Barrow Borough Council,The markets,Buildings repairs and maintenance,24-Jun-2020,200048129,Ward Glass Ltd,584.27
Barrow Borough Council,Disabled Facilities Grant,Grants,04-Jun-2020,200047923,Airey Property Developments & Adaptations,"3,965.00"
Barrow Borough Council,Crematorium,Gas,24-Jun-2020,200048102,Corona Energy,"2,344.36"
Barrow Borough Council,Homeless families and dispersed accommodation - HRA,Furniture - dispersed accommodation,11-Jun-2020,200047967,Furniture Resource Centre,"4,261.78"
Barrow Borough Council,Cost of collection,Professional fees,18-Jun-2020,200048043,Capacity Grid,"2,693.82"
Barrow Borough Council,Regeneration,Professional fees,04-Jun-2020,200047916,WYG Environment Planning Transport Ltd,"5,367.00"
Barrow Borough Council,Housing repairs control account,Housing repairs invoices,24-Jun-2020,200048104,Hughes Brothers,"3,769.60"
Barrow Borough Council,Housing repairs control account,Housing repairs invoices,04-Jun-2020,200047948,Howdens Joinery Ltd,597.90
Barrow Borough Council,Homelessness,Homeless support funding,18-Jun-2020,200048054,SRM Property Maintenance & Letting,866.00
Barrow Borough Council,Salthouse Road Depot,Electricity,24-Jun-2020,200048094,NPower,658.87
Barrow Borough Council,Disabled Facilities Grant,Grants,18-Jun-2020,200048086,ThyssenKrupp Encasa Ltd,"4,060.00"
Barrow Borough Council,Barrow town hall,Professional fees,11-Jun-2020,200048012,First Call,633.01
Barrow Borough Council,Information technology,Data Line Rental,11-Jun-2020,200048004,Liberata Uk Ltd,784.46
Barrow Borough Council,Human Resources,Subscriptions,11-Jun-2020,200048008,Cumbria County Council,"1,451.52"
Barrow Borough Council,Disabled Facilities Grant,Grants,11-Jun-2020,200048005,Airey Property Developments & Adaptations,"6,154.60"
Barrow Borough Council,Playground,Parks & Playgrounds Inspections & maintenance - contract,04-Jun-2020,200047947,Continental Landscapes Ltd,"15,292.23"
Barrow Borough Council,Voids maintenance - HRA,Void repairs,11-Jun-2020,200047995,Hughes Brothers,"3,388.81"
Barrow Borough Council,The markets,Buildings repairs and maintenance,11-Jun-2020,200047977,Cumbria Carpentry,"1,080.20"
Barrow Borough Council,The markets,Buildings repairs and maintenance,11-Jun-2020,200047959,Bryan Moncur Ltd,716.00
Barrow Borough Council,The markets,Buildings repairs and maintenance,11-Jun-2020,200047959,Bryan Moncur Ltd,"1,738.00"
Barrow Borough Council,Housing repairs control account,Housing repairs invoices,24-Jun-2020,200048104,Hughes Brothers,"3,769.60"
Barrow Borough Council,Voids maintenance - HRA,Void repairs,11-Jun-2020,200047995,Hughes Brothers,"8,196.97"
Barrow Borough Council,Pollution,Conferences and seminars,11-Jun-2020,200047983,RH Environmental Ltd t/a RHE Global,688.50
Barrow Borough Council,HRA Estates,Cleaning - other,11-Jun-2020,200047989,Associated Cleaning Contractors,"3,702.10"
Barrow Borough Council,IR personal account,Tax deducted - CIS tax,24-Jun-2020,200048123,Bill Caulfield Electrical,-594.00
Barrow Borough Council,Planning Policy,Solicitors fees,18-Jun-2020,200048048,Mr Freddie Humphreys,"1,000.00"
Barrow Borough Council,Voids maintenance - HRA,Void repairs,11-Jun-2020,200047995,Hughes Brothers,"3,234.93"
Barrow Borough Council,Barrow BID,Other bodies expenditure,11-Jun-2020,200048002,Barrow BID Company Ltd,"14,659.38"
Barrow Borough Council,Barrow town hall,Building cleaning,04-Jun-2020,200047929,Associated Cleaning Contractors,"5,045.75"
Barrow Borough Council,Finance Department,Professional fees,11-Jun-2020,200048006,Lambert Smith Hampton,"5,937.50"
Barrow Borough Council,Local land charges,Land search charge,04-Jun-2020,200047921,Cumbria County Council,"1,564.00"
Barrow Borough Council,Craven house,Electricity,24-Jun-2020,200048094,NPower,"5,799.35"
Barrow Borough Council,Cyclical maintenance - HRA,Smoke alarms,18-Jun-2020,200048073,Rexel UK Ltd,"6,719.08"
Barrow Borough Council,Current assets - payments in advance,Payment in advance - GF,11-Jun-2020,200047998,Haymarket Media Group,"2,915.00"
Barrow Borough Council,Barrow Island Growth Zone,Professional fees,04-Jun-2020,200047939,RG Parkins & Partners Ltd,"2,200.00"
Barrow Borough Council,Coast protection,CAPITA dbs fees,11-Jun-2020,200048001,Capita Property & Infrastructure Ltd,"2,375.00"
Barrow Borough Council,Tenant demand maintenance - HRA,Gas works,11-Jun-2020,200047996,Sure Maintenance,"3,008.17"
Barrow Borough Council,Waste collection,Refuse collection - contract,18-Jun-2020,200048053,FCC Enviroment Services (UK) Ltd,"-6,481.60"
Barrow Borough Council,Cost of collection,Council tax collection,24-Jun-2020,200048106,Liberata Uk Ltd,511.32
Barrow Borough Council,Housing repairs control account,Housing repairs invoices,04-Jun-2020,200047948,Howdens Joinery Ltd,634.57
Barrow Borough Council,Forum 28,Gas,24-Jun-2020,200048102,Corona Energy,"1,711.68"
Barrow Borough Council,Dock museum,Gas,24-Jun-2020,200048102,Corona Energy,"1,053.04"
Barrow Borough Council,Telephones Holding A/C,Telephone charges paid,11-Jun-2020,200047982,EE Ltd,"1,478.85"
Barrow Borough Council,Craven house,Building cleaning,18-Jun-2020,200048060,Associated Cleaning Contractors,595.27
Barrow Borough Council,Housing repairs control account,Housing repairs invoices,24-Jun-2020,200048104,Hughes Brothers,"3,769.60"
Barrow Borough Council,Tenant demand maintenance - HRA,Routine Maintenance,11-Jun-2020,200047995,Hughes Brothers,"3,769.60"
Barrow Borough Council,Barrow town hall,Gas,24-Jun-2020,200048102,Corona Energy,"1,529.88"
Barrow Borough Council,North Central Renewal Greengate Street,Professional fees,11-Jun-2020,200047972,Arcus Consulting LLP,"3,530.00"
Barrow Borough Council,Current assets - payments in advance,Payment in advance - GF,11-Jun-2020,200047998,Haymarket Media Group,"1,275.00"
Barrow Borough Council,Homelessness,Preventing Homelessness - support victims of domestic abuse,24-Jun-2020,200048108,Womens Community Matters,"8,258.00"
Barrow Borough Council,Waste collection,Refuse collection - contract,18-Jun-2020,200048053,FCC Enviroment Services (UK) Ltd,"3,240.80"
Barrow Borough Council,Recycling,Recycling collection and processing,18-Jun-2020,200048053,FCC Enviroment Services (UK) Ltd,"-2,518.01"
Barrow Borough Council,Corporate management,Brokerage fees,11-Jun-2020,200048010,Link Treasury Services Ltd,"12,100.00"
Barrow Borough Council,HRA Estates,Cleaning - other,04-Jun-2020,200047929,Associated Cleaning Contractors,"3,702.10"
Barrow Borough Council,Dock museum,Building cleaning,18-Jun-2020,200048060,Associated Cleaning Contractors,"3,460.00"
Barrow Borough Council,Sports development and community recreation,Solicitors fees,24-Jun-2020,200048125,Brown Barron Solicitors,539.50
Barrow Borough Council,Forum 28,Electricity,24-Jun-2020,200048094,NPower,"3,637.21"
Barrow Borough Council,Crematorium,Electricity,24-Jun-2020,200048094,NPower,"1,137.80"
Barrow Borough Council,Capitalised Planned Maintenance,Rewires,11-Jun-2020,200047961,Keith Wilson Elec Con Ltd,"6,268.08"
Barrow Borough Council,Crematorium,Equipment purchase,18-Jun-2020,200048044,JCH Plumbing & Heating Ltd,"4,282.00"
Barrow Borough Council,Street fittings,Building cleaning,24-Jun-2020,200048133,Growing Concerns,828.00
Barrow Borough Council,Homelessness,Homeless support funding,04-Jun-2020,200047924,Redacted Information,"3,755.00"
Barrow Borough Council,Voids maintenance - HRA,Void repairs,18-Jun-2020,200048075,Hughes Brothers,763.18
Barrow Borough Council,Forum 28,Electricity,24-Jun-2020,200048094,NPower,"3,851.28"
Barrow Borough Council,The markets,Electricity,24-Jun-2020,200048094,NPower,646.36
Barrow Borough Council,Cyclical maintenance - HRA,Smoke alarms,11-Jun-2020,200047997,Rexel UK Ltd,"18,318.86"
Barrow Borough Council,Cemeteries,Grounds maintenance - schedule of works,11-Jun-2020,200048032,Continental Landscapes Ltd,"10,853.34"
Barrow Borough Council,Housing Benefits Admin,Benefits council tenants,11-Jun-2020,200048004,Liberata Uk Ltd,"2,638.89"
Barrow Borough Council,Housing repairs control account,Housing repairs invoices,24-Jun-2020,200048104,Hughes Brothers,"3,769.60"
Barrow Borough Council,Craven house,Water,11-Jun-2020,200048016,Water Plus Ltd,"1,800.88"
Barrow Borough Council,Street cleansing,Litter bins,24-Jun-2020,200048133,Growing Concerns,536.00
Barrow Borough Council,Tenant demand maintenance - HRA,Routine Maintenance,11-Jun-2020,200048035,Ocean Construction UK Ltd,"5,456.37"
Barrow Borough Council,Disabled Facilities Grant,Grants,24-Jun-2020,200048139,Prism Medical UK Ltd,"1,779.20"
Barrow Borough Council,Regeneration,Professional fees,04-Jun-2020,200047926,Cushman & Wakefield,"10,377.00"
Barrow Borough Council,Finance Department,Professional fees,04-Jun-2020,200047935,Cumbria County Council,500.00
Barrow Borough Council,Capitalised Planned Maintenance,Rewires,18-Jun-2020,200048055,Keith Wilson Elec Con Ltd,"8,276.32"
Barrow Borough Council,Barrow town hall,Building cleaning,04-Jun-2020,200047929,Associated Cleaning Contractors,"1,961.00"
Barrow Borough Council,Estates management,Solicitors fees,11-Jun-2020,200047963,Brown Barron Solicitors,"1,158.75"
Barrow Borough Council,HRA administration,Subscriptions,11-Jun-2020,200048015,David Ganz Associates Ltd,950.00
Barrow Borough Council,The markets,Buildings repairs and maintenance,11-Jun-2020,200047962,Bill Caulfield Electrical,"1,516.56"
Barrow Borough Council,Disabled Facilities Grant,Grants,18-Jun-2020,200048086,ThyssenKrupp Encasa Ltd,"3,752.00"
Barrow Borough Council,Current assets - payments in advance,Payment in advance - GF,11-Jun-2020,200047998,Haymarket Media Group,"2,580.00"
Barrow Borough Council,Tenant demand maintenance - HRA,Gas works,11-Jun-2020,200047996,Sure Maintenance,"2,000.00"
Barrow Borough Council,Legal,Staff advertising,11-Jun-2020,200047975,Hemming Group Ltd,"3,000.00"
Barrow Borough Council,Telephones Holding A/C,Telephone charges paid,11-Jun-2020,200048004,Liberata Uk Ltd,609.22
Barrow Borough Council,Recycling,Recycling collection and processing,18-Jun-2020,200048053,FCC Enviroment Services (UK) Ltd,"5,036.02"
Barrow Borough Council,Cyclical maintenance - HRA,Smoke alarms,11-Jun-2020,200047961,Keith Wilson Elec Con Ltd,"2,318.40"
Barrow Borough Council,Tenant demand maintenance - HRA,Consultancy fees,11-Jun-2020,200047992,Procure Plus Ltd,"7,761.52"
Barrow Borough Council,Salthouse Road Depot,Buildings repairs and maintenance,24-Jun-2020,200048097,Andrew Thompson,"1,340.10"
Barrow Borough Council,Recycling,Recycling collection and processing,18-Jun-2020,200048053,FCC Enviroment Services (UK) Ltd,"12,590.05"
Barrow Borough Council,Barrow park,Publicity,04-Jun-2020,200047937,Fingerprints,"1,144.00"
Barrow Borough Council,Dock museum,Electricity,24-Jun-2020,200048094,NPower,"1,767.18"
Barrow Borough Council,HRA Estates,Cleaning - other,04-Jun-2020,200047929,Associated Cleaning Contractors,"3,702.10"
Barrow Borough Council,Craven house,Building cleaning,04-Jun-2020,200047929,Associated Cleaning Contractors,595.27
Barrow Borough Council,Crematorium,Buildings repairs and maintenance,24-Jun-2020,200048123,Bill Caulfield Electrical,516.71
Barrow Borough Council,Disabled Facilities Grant,Grants,24-Jun-2020,200048138,Benchmark Building Serv UK Ltd,"3,460.00"
Barrow Borough Council,Local Council Tax Reduction Scheme (LCTRS),LCTRS Admin,11-Jun-2020,200048004,Liberata Uk Ltd,"8,907.54"
Barrow Borough Council,Technical services,Corporate health and safety resources,04-Jun-2020,200047911,CMT Group,804.00
Barrow Borough Council,Regeneration,Professional fees,04-Jun-2020,200047916,WYG Environment Planning Transport Ltd,939.00
Barrow Borough Council,Telephones Holding A/C,Telephone charges paid,04-Jun-2020,200047933,EE Ltd,"1,572.57"
Barrow Borough Council,Emergency planning,Other expenses,04-Jun-2020,200047954,Athena PTS,"4,590.00"
Barrow Borough Council,The markets,Buildings repairs and maintenance,11-Jun-2020,200047962,Bill Caulfield Electrical,696.91
Barrow Borough Council,Crematorium,Electricity,24-Jun-2020,200048094,NPower,"1,198.87"
Barrow Borough Council,Capitalised Planned Maintenance,Rewires,18-Jun-2020,200048073,Rexel UK Ltd,689.82
Barrow Borough Council,General grants,Other grants,18-Jun-2020,200048050,Cumbria CVS,"5,000.00"
Barrow Borough Council,Cyclical maintenance - HRA,Gas works,11-Jun-2020,200047996,Sure Maintenance,"7,346.55"
Barrow Borough Council,HRA Estates,Cleaning - other,04-Jun-2020,200047929,Associated Cleaning Contractors,"3,702.10"
Barrow Borough Council,Dock museum,Gas,24-Jun-2020,200048102,Corona Energy,"1,543.72"
Barrow Borough Council,Barrow town hall,Gas,24-Jun-2020,200048102,Corona Energy,852.14
Barrow Borough Council,Local land charges,Land search charge,04-Jun-2020,200047921,Cumbria County Council,"1,533.00"
Barrow Borough Council,Phoenix Business Centre,Solicitors fees,11-Jun-2020,200047963,Brown Barron Solicitors,550.00
Barrow Borough Council,Local Council Tax Reduction Scheme (LCTRS),LCTRS Admin,24-Jun-2020,200048106,Liberata Uk Ltd,511.31
Barrow Borough Council,Cyclical maintenance - HRA,Smoke alarms,11-Jun-2020,200047997,Rexel UK Ltd,"5,712.00"
Barrow Borough Council,Waste collection,Refuse collection - contract,18-Jun-2020,200048053,FCC Enviroment Services (UK) Ltd,"16,204.00"
Barrow Borough Council,Crematorium,Gas,24-Jun-2020,200048102,Corona Energy,"2,274.53"
Barrow Borough Council,Housing repairs control account,Housing repairs invoices,24-Jun-2020,200048104,Hughes Brothers,"3,769.60"
Barrow Borough Council,Allotments,Water,24-Jun-2020,200048111,Water Plus Ltd,"1,166.94"
Barrow Borough Council,Capitalised Planned Maintenance,Heating,11-Jun-2020,200047960,Plumbing Trade Supplies,736.76
Barrow Borough Council,Forum 28,Planned Building repairs and maintenance,24-Jun-2020,200048131,Pickerings Scaffolding Ltd,650.00
Barrow Borough Council,Cyclical maintenance - HRA,Painting,04-Jun-2020,200047944,George Jones & Son (Contractors) Ltd,"22,099.47"
Barrow Borough Council,Tenant demand maintenance - HRA,Consultancy fees,18-Jun-2020,200048077,Procure Plus Ltd,"6,279.68"
Barrow Borough Council,Capitalised Planned Maintenance,Rewires,11-Jun-2020,200047997,Rexel UK Ltd,642.57
Barrow Borough Council,Disabled Facilities Grant,Grants,18-Jun-2020,200048086,ThyssenKrupp Encasa Ltd,"3,890.00"
Barrow Borough Council,Capitalised Planned Maintenance,Heating,11-Jun-2020,200047960,Plumbing Trade Supplies,636.61
Barrow Borough Council,Corporate support,Subscriptions,11-Jun-2020,200047976,Allerdale Borough Council,800.00
Barrow Borough Council,Capitalised Planned Maintenance,Heating,18-Jun-2020,200048074,Sure Maintenance,"8,509.02"
Barrow Borough Council,Barrow BID,Other bodies expenditure,11-Jun-2020,200048002,Barrow BID Company Ltd,"9,455.25"
Barrow Borough Council,Tenant demand maintenance - HRA,Gas works,11-Jun-2020,200047996,Sure Maintenance,"2,000.00"
Barrow Borough Council,Barrow town hall,Building cleaning,18-Jun-2020,200048060,Associated Cleaning Contractors,"4,919.74"
Barrow Borough Council,Barrow town hall,Building cleaning,18-Jun-2020,200048060,Associated Cleaning Contractors,"1,358.13"
Barrow Borough Council,Waste collection,Refuse collection - contract,18-Jun-2020,200048053,FCC Enviroment Services (UK) Ltd,"6,481.60"
Barrow Borough Council,Forum 28,Gas,24-Jun-2020,200048102,Corona Energy,"1,569.96"
Barrow Borough Council,Marina Village,Specialised work,04-Jun-2020,200047916,WYG Environment Planning Transport Ltd,"4,080.00"
Barrow Borough Council,Housing Benefits Admin,Benefits private tenants,11-Jun-2020,200048004,Liberata Uk Ltd,"7,193.34"
Barrow Borough Council,Emergency planning,Other expenses,24-Jun-2020,200048117,Normanton Screen Print,536.55
Barrow Borough Council,Crematorium,Maintenance contracts - venue,04-Jun-2020,200047913,RJS Waste Management UK Ltd,"1,750.00"
Barrow Borough Council,Disabled Facilities Grant,Grants,18-Jun-2020,200048066,Airey Property Developments & Adaptations,"3,345.00"
Barrow Borough Council,Playground,Parks & Playgrounds Repairs & Maintenance,04-Jun-2020,200047947,Continental Landscapes Ltd,"3,506.55"
Barrow Borough Council,Housing repairs control account,Housing repairs invoices,24-Jun-2020,200048104,Hughes Brothers,"3,769.60"
Barrow Borough Council,Democratic representation and management,Subscriptions,01-Jun-2020,DD010620,Local Government Association,"8,407.62"
Barrow Borough Council,Corporate Costs,Professional fees,02-Jun-2020,DD020620,Capita Business Services Limited,"2,798.88"
Barrow Borough Council,Emergency planning,Computer Hardware Purchase,09-Jun-2020,DD090620,Ebuyer (UK) Ltd,"10,376.20"
Barrow Borough Council,CIS - Inland Revenue Account,CIS Tax,10-Jun-2020,DD100620,HMRC,"2,587.84"
Barrow Borough Council,Revenues & Benefits,Postage,24-Jun-2020,DD240620,Royal Mail,800.16
Barrow Borough Council,Dock Museum,Hardware Purchase,24-Jun-2020,DD240620,E-buyer (UK) Ltd,"1,101.04"
Barrow Borough Council,Corporate Costs,Professional fees,26-Jun-2020,DD260620,Allpay,"2,981.08"
Barrow Borough Council,Corporate Costs,Professional fees,30-Jun-2020,DD300620,Capita Business Services Limited,"2,702.72"
